[Event "Titled Tuesday Blitz June 07 Late 2022"]
[White "Vasquez Schroeder, Rodrigo"]
[Black "Domingo Nunez, Ruben"]
[WhiteFideId "3400042"]
[BlackFideId "22245570"]
[WhiteElo "2567"]
[BlackElo "2376"]
[Result "1/2-1/2"]
[Round "06"]
[TimeControl "180+1"]
[Date "2022.06.07"]
[WhiteClock "0:00:07"]
[BlackClock "0:00:06"]

1. e4 {[%clk 0:02:57]}  Nc6 {[%clk 0:02:52]} 2. Nf3 {[%clk 0:02:53]}  d5 {[%clk 0:02:52]} 3. Nc3 {[%clk 0:02:48]}  d4 {[%clk 0:02:51]} 4. Ne2 {[%clk 0:02:48]}  Bg4 {[%clk 0:02:51]} 5. Ng3 {[%clk 0:02:44]}  h5 {[%clk 0:02:47]} 6. h4 {[%clk 0:02:38]}  a6 {[%clk 0:02:44]} 7. Bc4 {[%clk 0:02:32]}  e6 {[%clk 0:02:36]} 8. Be2 {[%clk 0:02:24]}  Be7 {[%clk 0:02:36]} 9. d3 {[%clk 0:02:23]}  g6 {[%clk 0:02:31]} 10. Ng5 {[%clk 0:02:21]}  Bxe2 {[%clk 0:02:22]} 11. Nxe2 {[%clk 0:02:17]}  Qd7 {[%clk 0:02:10]} 12. g3 {[%clk 0:02:09]}  Nh6 {[%clk 0:02:05]} 13. Nf4 {[%clk 0:02:00]}  Ne5 {[%clk 0:01:54]} 14. Qe2 {[%clk 0:01:57]}  O-O-O {[%clk 0:01:47]} 15. Bd2 {[%clk 0:01:54]}  Qb5 {[%clk 0:01:43]} 16. O-O-O {[%clk 0:01:53]}  Rd6 {[%clk 0:01:43]} 17. c4 {[%clk 0:01:43]}  dxc3 {[%clk 0:01:33]} 18. Bxc3 {[%clk 0:01:43]}  Rc6 {[%clk 0:01:34]} 19. d4 {[%clk 0:01:39]}  Rxc3+ {[%clk 0:00:48]} 20. bxc3 {[%clk 0:01:38]}  Nc4 {[%clk 0:00:48]} 21. Nd3 {[%clk 0:01:26]}  a5 {[%clk 0:00:24]} 22. Kc2 {[%clk 0:01:25]}  Na3+ {[%clk 0:00:24]} 23. Kd2 {[%clk 0:01:25]}  Bxg5+ {[%clk 0:00:20]} 24. hxg5 {[%clk 0:01:24]}  Qxg5+ {[%clk 0:00:20]} 25. Ke1 {[%clk 0:01:23]}  Ng4 {[%clk 0:00:20]} 26. Kf1 {[%clk 0:01:04]}  f5 {[%clk 0:00:20]} 27. Nf4 {[%clk 0:01:01]}  Re8 {[%clk 0:00:18]} 28. e5 {[%clk 0:00:58]}  c6 {[%clk 0:00:17]} 29. c4 {[%clk 0:00:53]}  Qe7 {[%clk 0:00:15]} 30. f3 {[%clk 0:00:50]}  Nh6 {[%clk 0:00:13]} 31. Rb1 {[%clk 0:00:39]}  h4 {[%clk 0:00:09]} 32. Rxh4 {[%clk 0:00:35]}  Qg7 {[%clk 0:00:09]} 33. Rh2 {[%clk 0:00:32]}  g5 {[%clk 0:00:09]} 34. Nh5 {[%clk 0:00:32]}  Qg6 {[%clk 0:00:09]} 35. Nf6 {[%clk 0:00:31]}  Rd8 {[%clk 0:00:09]} 36. Rb3 {[%clk 0:00:27]}  f4 {[%clk 0:00:07]} 37. Rxa3 {[%clk 0:00:25]}  Nf5 {[%clk 0:00:07]} 38. Kg2 {[%clk 0:00:18]}  Nxg3 {[%clk 0:00:06]} 39. Qd3 {[%clk 0:00:18]}  Nf5 {[%clk 0:00:05]} 40. d5 {[%clk 0:00:18]}  exd5 {[%clk 0:00:04]} 41. cxd5 {[%clk 0:00:19]}  g4 {[%clk 0:00:03]} 42. fxg4 {[%clk 0:00:17]}  Ne3+ {[%clk 0:00:03]} 43. Kf3 {[%clk 0:00:16]}  Qg5 {[%clk 0:00:04]} 44. Qe4 {[%clk 0:00:14]}  cxd5 {[%clk 0:00:04]} 45. Rc3+ {[%clk 0:00:12]}  Kb8 {[%clk 0:00:04]} 46. Qh7 {[%clk 0:00:12]}  Qxe5 {[%clk 0:00:04]} 47. Qc7+ {[%clk 0:00:08]}  Qxc7 {[%clk 0:00:04]} 48. Rxc7 {[%clk 0:00:08]}  Kxc7 {[%clk 0:00:05]} 49. Kxf4 {[%clk 0:00:09]}  Nc4 {[%clk 0:00:05]} 50. g5 {[%clk 0:00:09]}  d4 {[%clk 0:00:05]} 51. g6 {[%clk 0:00:10]}  d3 {[%clk 0:00:06]} 52. g7 {[%clk 0:00:06]}  d2 {[%clk 0:00:06]} 53. Rh1 {[%clk 0:00:07]}  Nb2 {[%clk 0:00:03]} 54. Rb1 {[%clk 0:00:02]}  d1=Q {[%clk 0:00:03]} 55. Rxd1 {[%clk 0:00:03]}  Nxd1 {[%clk 0:00:04]} 56. g8=Q {[%clk 0:00:03]}  Rxg8 {[%clk 0:00:04]} 57. Nxg8 {[%clk 0:00:04]}  Nc3 {[%clk 0:00:05]} 58. a3 {[%clk 0:00:04]}  Nb1 {[%clk 0:00:06]} 59. a4 {[%clk 0:00:04]}  Nc3 {[%clk 0:00:06]} 60. Ke5 {[%clk 0:00:04]}  Nxa4 {[%clk 0:00:07]} 61. Kd5 {[%clk 0:00:05]}  Nb6+ {[%clk 0:00:07]} 62. Kc5 {[%clk 0:00:05]}  Nd7+ {[%clk 0:00:07]} 63. Kb5 {[%clk 0:00:06]}  b6 {[%clk 0:00:08]} 64. Ne7 {[%clk 0:00:06]}  Kb7 {[%clk 0:00:08]} 65. Nd5 {[%clk 0:00:06]}  Ka7 {[%clk 0:00:06]} 66. Nxb6 {[%clk 0:00:06]}  Nxb6 {[%clk 0:00:06]} 67. Kxa5 {[%clk 0:00:07]} 1/2-1/2


[Site "https://www.chess.com"]

[Event "Titled Tuesday Blitz June 07 Late 2022"]
[White "Xiong, Jeffery"]
[Black "Licznerski, Lukasz"]
[WhiteFideId "2047640"]
[BlackFideId "1179250"]
[WhiteElo "2714"]
[BlackElo "2387"]
[Result "1-0"]
[Round "06"]
[TimeControl "180+1"]
[Date "2022.06.07"]
[WhiteClock "0:01:17"]
[BlackClock "0:00:07"]

1. e4 {[%clk 0:03:00]}  c6 {[%clk 0:02:59]} 2. c4 {[%clk 0:02:55]}  d5 {[%clk 0:03:00]} 3. exd5 {[%clk 0:02:56]}  cxd5 {[%clk 0:03:01]} 4. d4 {[%clk 0:02:57]}  Nf6 {[%clk 0:03:01]} 5. Nc3 {[%clk 0:02:57]}  g6 {[%clk 0:03:02]} 6. Qb3 {[%clk 0:02:56]}  Bg7 {[%clk 0:03:01]} 7. cxd5 {[%clk 0:02:56]}  O-O {[%clk 0:03:02]} 8. Be2 {[%clk 0:02:57]}  Na6 {[%clk 0:03:01]} 9. Bf3 {[%clk 0:02:57]}  Qb6 {[%clk 0:03:01]} 10. Qd1 {[%clk 0:02:38]}  Rd8 {[%clk 0:02:50]} 11. Nge2 {[%clk 0:02:37]}  Bg4 {[%clk 0:02:48]} 12. Bxg4 {[%clk 0:02:35]}  Nxg4 {[%clk 0:02:49]} 13. O-O {[%clk 0:02:34]}  Nf6 {[%clk 0:02:33]} 14. Nf4 {[%clk 0:02:34]}  Nb4 {[%clk 0:02:30]} 15. Qb3 {[%clk 0:02:29]}  Kf8 {[%clk 0:02:03]} 16. Na4 {[%clk 0:02:13]}  Qxd4 {[%clk 0:01:23]} 17. Be3 {[%clk 0:02:11]}  Qe4 {[%clk 0:01:15]} 18. Nc5 {[%clk 0:02:08]}  Qf5 {[%clk 0:00:45]} 19. Qxb4 {[%clk 0:02:08]}  g5 {[%clk 0:00:46]} 20. Nfe6+ {[%clk 0:02:04]}  fxe6 {[%clk 0:00:39]} 21. Nxe6+ {[%clk 0:02:05]}  Kf7 {[%clk 0:00:38]} 22. Qxb7 {[%clk 0:01:55]}  Rdb8 {[%clk 0:00:27]} 23. Nxg7 {[%clk 0:01:55]}  Kxg7 {[%clk 0:00:20]} 24. Qxe7+ {[%clk 0:01:55]}  Kg6 {[%clk 0:00:21]} 25. Rad1 {[%clk 0:01:42]}  Re8 {[%clk 0:00:21]} 26. Qa3 {[%clk 0:01:39]}  a5 {[%clk 0:00:15]} 27. d6 {[%clk 0:01:39]}  Rad8 {[%clk 0:00:16]} 28. Bb6 {[%clk 0:01:37]}  Rd7 {[%clk 0:00:16]} 29. Qxa5 {[%clk 0:01:37]}  Re5 {[%clk 0:00:14]} 30. Qa4 {[%clk 0:01:34]}  Rb5 {[%clk 0:00:12]} 31. Be3 {[%clk 0:01:18]}  Rxb2 {[%clk 0:00:11]} 32. Bd4 {[%clk 0:01:18]}  Rb8 {[%clk 0:00:06]} 33. Bxf6 {[%clk 0:01:18]}  Qxf6 {[%clk 0:00:07]} 34. Qxd7 {[%clk 0:01:17]} 1-0


[Site "https://www.chess.com"]

[Event "Titled Tuesday Blitz June 07 Late 2022"]
[White "Zhurbinsky, David"]
[Black "Ivanisevic, Ivan"]
[WhiteFideId "2072904"]
[BlackFideId "912417"]
[WhiteElo "2546"]
[BlackElo "2535"]
[Result "1-0"]
[Round "06"]
[TimeControl "180+1"]
[Date "2022.06.07"]
[WhiteClock "0:00:08"]
[BlackClock "0:00:08"]

1. e4 {[%clk 0:02:59]}  e5 {[%clk 0:02:59]} 2. Nf3 {[%clk 0:02:59]}  Nc6 {[%clk 0:03:00]} 3. Bb5 {[%clk 0:02:59]}  a6 {[%clk 0:03:00]} 4. Ba4 {[%clk 0:03:00]}  Bc5 {[%clk 0:03:00]} 5. O-O {[%clk 0:03:00]}  Nge7 {[%clk 0:03:00]} 6. c3 {[%clk 0:03:00]}  Ba7 {[%clk 0:03:00]} 7. d4 {[%clk 0:03:00]}  Ng6 {[%clk 0:03:00]} 8. Bg5 {[%clk 0:02:56]}  f6 {[%clk 0:03:00]} 9. Be3 {[%clk 0:02:57]}  O-O {[%clk 0:03:00]} 10. Nbd2 {[%clk 0:02:52]}  d6 {[%clk 0:02:57]} 11. h3 {[%clk 0:02:45]}  Kh8 {[%clk 0:02:57]} 12. Qe2 {[%clk 0:02:29]}  exd4 {[%clk 0:02:21]} 13. cxd4 {[%clk 0:02:25]}  f5 {[%clk 0:02:20]} 14. exf5 {[%clk 0:02:20]}  Bxf5 {[%clk 0:02:17]} 15. Bg5 {[%clk 0:02:04]}  Qc8 {[%clk 0:02:03]} 16. d5 {[%clk 0:01:52]}  Bxh3 {[%clk 0:01:46]} 17. gxh3 {[%clk 0:01:30]}  Qxh3 {[%clk 0:01:45]} 18. dxc6 {[%clk 0:01:23]}  Qg4+ {[%clk 0:01:06]} 19. Kh1 {[%clk 0:01:22]}  Qh3+ {[%clk 0:00:26]} 20. Nh2 {[%clk 0:01:12]}  b5 {[%clk 0:00:23]} 21. Bc2 {[%clk 0:01:09]}  Ne5 {[%clk 0:00:23]} 22. f4 {[%clk 0:01:03]}  Nf7 {[%clk 0:00:21]} 23. Qg4 {[%clk 0:00:51]}  Nxg5 {[%clk 0:00:21]} 24. fxg5 {[%clk 0:00:41]}  Qxg4 {[%clk 0:00:21]} 25. Nxg4 {[%clk 0:00:41]}  Bd4 {[%clk 0:00:22]} 26. Rxf8+ {[%clk 0:00:33]}  Rxf8 {[%clk 0:00:23]} 27. a4 {[%clk 0:00:33]}  Bxb2 {[%clk 0:00:20]} 28. Rb1 {[%clk 0:00:33]}  Bc3 {[%clk 0:00:20]} 29. axb5 {[%clk 0:00:31]}  axb5 {[%clk 0:00:18]} 30. Ne4 {[%clk 0:00:30]}  Bd4 {[%clk 0:00:15]} 31. Rxb5 {[%clk 0:00:27]}  h5 {[%clk 0:00:16]} 32. gxh6 {[%clk 0:00:25]}  gxh6 {[%clk 0:00:17]} 33. Nxh6 {[%clk 0:00:22]}  Rf4 {[%clk 0:00:16]} 34. Nf7+ {[%clk 0:00:20]}  Kg7 {[%clk 0:00:15]} 35. Nfg5 {[%clk 0:00:19]}  Rh4+ {[%clk 0:00:14]} 36. Kg2 {[%clk 0:00:19]}  Be5 {[%clk 0:00:12]} 37. Ng3 {[%clk 0:00:12]}  Rg4 {[%clk 0:00:11]} 38. Ne4 {[%clk 0:00:11]}  Kf7 {[%clk 0:00:11]} 39. Kf3 {[%clk 0:00:10]}  Rg7 {[%clk 0:00:11]} 40. Rb7 {[%clk 0:00:11]}  Ke6 {[%clk 0:00:11]} 41. Bb3+ {[%clk 0:00:12]}  d5 {[%clk 0:00:11]} 42. Nc5+ {[%clk 0:00:10]}  Kf6 {[%clk 0:00:10]} 43. Bxd5 {[%clk 0:00:10]}  Rxg3+ {[%clk 0:00:09]} 44. Kf2 {[%clk 0:00:10]}  Rg7 {[%clk 0:00:09]} 45. Nd7+ {[%clk 0:00:09]}  Kf5 {[%clk 0:00:09]} 46. Bf3 {[%clk 0:00:08]}  Bd6 {[%clk 0:00:09]} 47. Rb5+ {[%clk 0:00:09]}  Kf4 {[%clk 0:00:08]} 48. Nf6 {[%clk 0:00:07]}  Rf7 {[%clk 0:00:08]} 49. Nh5# {[%clk 0:00:08]} 1-0


[Site "https://www.chess.com"]

[Event "Titled Tuesday Blitz June 07 Late 2022"]
[White "Abarca Gonzalez, Nicolas"]
[Black "Martinez Alcantara, Jose Eduardo"]
[WhiteFideId "3409422"]
[BlackFideId "3805662"]
[WhiteElo "2504"]
[BlackElo "2703"]
[Result "0-1"]
[Round "07"]
[TimeControl "180+1"]
[Date "2022.06.07"]
[WhiteClock "0:00:31"]
[BlackClock "0:00:11"]

1. e4 {[%clk 0:03:00]}  c5 {[%clk 0:02:59]} 2. Nf3 {[%clk 0:03:01]}  d6 {[%clk 0:03:00]} 3. Bc4 {[%clk 0:03:01]}  e6 {[%clk 0:03:00]} 4. Qe2 {[%clk 0:03:00]}  Nc6 {[%clk 0:02:59]} 5. c3 {[%clk 0:02:59]}  Nf6 {[%clk 0:02:55]} 6. d4 {[%clk 0:02:59]}  cxd4 {[%clk 0:02:56]} 7. cxd4 {[%clk 0:03:00]}  d5 {[%clk 0:02:56]} 8. exd5 {[%clk 0:03:00]}  Nxd5 {[%clk 0:02:57]} 9. Bxd5 {[%clk 0:03:00]}  Qxd5 {[%clk 0:02:56]} 10. Nc3 {[%clk 0:03:01]}  Bb4 {[%clk 0:02:51]} 11. O-O {[%clk 0:03:01]}  Bxc3 {[%clk 0:02:51]} 12. bxc3 {[%clk 0:03:02]}  O-O {[%clk 0:02:52]} 13. c4 {[%clk 0:03:02]}  Nxd4 {[%clk 0:02:36]} 14. Nxd4 {[%clk 0:03:02]}  Qxd4 {[%clk 0:02:37]} 15. Bb2 {[%clk 0:03:02]}  Qh4 {[%clk 0:02:28]} 16. Rad1 {[%clk 0:02:49]}  f6 {[%clk 0:01:56]} 17. Rd4 {[%clk 0:02:46]}  Qg5 {[%clk 0:01:46]} 18. f4 {[%clk 0:02:39]}  Qc5 {[%clk 0:01:41]} 19. Qe3 {[%clk 0:02:39]}  b5 {[%clk 0:01:29]} 20. cxb5 {[%clk 0:02:13]}  Qxb5 {[%clk 0:01:30]} 21. Ba3 {[%clk 0:02:13]}  Re8 {[%clk 0:01:27]} 22. Rc1 {[%clk 0:02:08]}  Ba6 {[%clk 0:01:24]} 23. h3 {[%clk 0:02:03]}  Rac8 {[%clk 0:01:15]} 24. Rxc8 {[%clk 0:01:56]}  Bxc8 {[%clk 0:01:16]} 25. Rd6 {[%clk 0:01:46]}  a6 {[%clk 0:01:03]} 26. Qa7 {[%clk 0:01:41]}  Qc4 {[%clk 0:00:46]} 27. Qf2 {[%clk 0:01:30]}  Bb7 {[%clk 0:00:34]} 28. Qg3 {[%clk 0:01:24]}  Be4 {[%clk 0:00:28]} 29. Rd7 {[%clk 0:01:19]}  Bg6 {[%clk 0:00:28]} 30. h4 {[%clk 0:01:15]}  Qb5 {[%clk 0:00:27]} 31. Rd2 {[%clk 0:01:07]}  Qc4 {[%clk 0:00:21]} 32. Rd7 {[%clk 0:01:05]}  Qb5 {[%clk 0:00:21]} 33. Rd2 {[%clk 0:01:05]}  Bf5 {[%clk 0:00:19]} 34. h5 {[%clk 0:01:03]}  h6 {[%clk 0:00:20]} 35. Bb2 {[%clk 0:01:01]}  Kh7 {[%clk 0:00:18]} 36. Kh2 {[%clk 0:00:58]}  Be4 {[%clk 0:00:17]} 37. Qg4 {[%clk 0:00:44]}  Bf5 {[%clk 0:00:17]} 38. Qg3 {[%clk 0:00:42]}  Rc8 {[%clk 0:00:15]} 39. Bd4 {[%clk 0:00:37]}  Qe8 {[%clk 0:00:15]} 40. Qf3 {[%clk 0:00:35]}  Qc6 {[%clk 0:00:11]} 41. g3 {[%clk 0:00:31]}  Qxf3 {[%clk 0:00:11]} 0-1


[Site "https://www.chess.com"]

[Event "Titled Tuesday Blitz June 07 Late 2022"]
[White "Agibileg, Uurtsaikh"]
[Black "Gurevich, Dmitry"]
[WhiteFideId "4901606"]
[BlackFideId "2000407"]
[WhiteElo "2205"]
[BlackElo "2506"]
[Result "0-1"]
[Round "07"]
[TimeControl "180+1"]
[Date "2022.06.07"]
[WhiteClock "0:00:03"]
[BlackClock "0:00:06"]

1. d4 {[%clk 0:03:00]}  Nf6 {[%clk 0:02:59]} 2. c4 {[%clk 0:03:01]}  a6 {[%clk 0:02:59]} 3. Nc3 {[%clk 0:02:56]}  c5 {[%clk 0:02:59]} 4. Nf3 {[%clk 0:02:55]}  cxd4 {[%clk 0:02:59]} 5. Nxd4 {[%clk 0:02:56]}  d5 {[%clk 0:02:59]} 6. cxd5 {[%clk 0:02:31]}  Nxd5 {[%clk 0:02:59]} 7. Nxd5 {[%clk 0:02:32]}  Qxd5 {[%clk 0:02:58]} 8. e3 {[%clk 0:02:22]}  e5 {[%clk 0:02:55]} 9. Nb3 {[%clk 0:02:14]}  Qxd1+ {[%clk 0:02:54]} 10. Kxd1 {[%clk 0:02:15]}  Be6 {[%clk 0:02:48]} 11. Be2 {[%clk 0:02:04]}  Nc6 {[%clk 0:02:46]} 12. Bf3 {[%clk 0:02:04]}  O-O-O+ {[%clk 0:02:43]} 13. Ke2 {[%clk 0:01:57]}  Bc4+ {[%clk 0:02:40]} 14. Ke1 {[%clk 0:01:57]}  Nb4 {[%clk 0:02:40]} 15. Be4 {[%clk 0:01:51]}  g6 {[%clk 0:02:34]} 16. Nd2 {[%clk 0:01:46]}  Be6 {[%clk 0:02:21]} 17. a3 {[%clk 0:01:43]}  Na2 {[%clk 0:02:05]} 18. Ke2 {[%clk 0:01:34]}  f5 {[%clk 0:02:01]} 19. Bb1 {[%clk 0:01:34]}  Nxc1+ {[%clk 0:02:01]} 20. Rxc1+ {[%clk 0:01:34]}  Kb8 {[%clk 0:02:01]} 21. f3 {[%clk 0:01:29]}  e4 {[%clk 0:01:46]} 22. fxe4 {[%clk 0:01:21]}  Bg7 {[%clk 0:01:45]} 23. Ba2 {[%clk 0:01:13]}  Bd7 {[%clk 0:01:28]} 24. Rab1 {[%clk 0:01:03]}  fxe4 {[%clk 0:01:26]} 25. Nxe4 {[%clk 0:00:49]}  Bf5 {[%clk 0:01:25]} 26. Nc5 {[%clk 0:00:35]}  Bxb1 {[%clk 0:01:20]} 27. Rxb1 {[%clk 0:00:26]}  Rhe8 {[%clk 0:01:13]} 28. Ne6 {[%clk 0:00:20]}  Rd7 {[%clk 0:01:12]} 29. Nxg7 {[%clk 0:00:20]}  Rxg7 {[%clk 0:01:12]} 30. Rd1 {[%clk 0:00:21]}  Kc8 {[%clk 0:01:03]} 31. Bc4 {[%clk 0:00:18]}  Rge7 {[%clk 0:00:58]} 32. Rd3 {[%clk 0:00:17]}  b5 {[%clk 0:00:56]} 33. Bd5 {[%clk 0:00:17]}  Kc7 {[%clk 0:00:52]} 34. e4 {[%clk 0:00:17]}  Kb6 {[%clk 0:00:49]} 35. Ke3 {[%clk 0:00:17]}  a5 {[%clk 0:00:47]} 36. Kd4 {[%clk 0:00:16]}  a4 {[%clk 0:00:45]} 37. Rf3 {[%clk 0:00:16]}  Rc8 {[%clk 0:00:44]} 38. Rf6+ {[%clk 0:00:12]}  Ka5 {[%clk 0:00:41]} 39. Kd3 {[%clk 0:00:11]}  Rc1 {[%clk 0:00:38]} 40. g4 {[%clk 0:00:07]}  Rd1+ {[%clk 0:00:35]} 41. Kc2 {[%clk 0:00:07]}  Re1 {[%clk 0:00:33]} 42. Kd2 {[%clk 0:00:06]}  Rg1 {[%clk 0:00:27]} 43. h3 {[%clk 0:00:06]}  Rg3 {[%clk 0:00:23]} 44. Be6 {[%clk 0:00:06]}  Rxh3 {[%clk 0:00:20]} 45. Bc8 {[%clk 0:00:05]}  Rh2+ {[%clk 0:00:18]} 46. Ke3 {[%clk 0:00:04]}  b4 {[%clk 0:00:16]} 47. axb4+ {[%clk 0:00:03]}  Kxb4 {[%clk 0:00:14]} 48. Rb6+ {[%clk 0:00:04]}  Kc5 {[%clk 0:00:14]} 49. Rb8 {[%clk 0:00:03]}  Rh3+ {[%clk 0:00:12]} 50. Kf4 {[%clk 0:00:03]}  h6 {[%clk 0:00:09]} 51. Ra8 {[%clk 0:00:02]}  Kb4 {[%clk 0:00:08]} 52. g5 {[%clk 0:00:02]}  Rh4+ {[%clk 0:00:08]} 53. Kg3 {[%clk 0:00:02]}  hxg5 {[%clk 0:00:08]} 54. Ba6 {[%clk 0:00:01]}  Rhxe4 {[%clk 0:00:06]} 55. Rb8+ {[%clk 0:00:01]}  Kc5 {[%clk 0:00:06]} 56. Bf1 {[%clk 0:00:02]}  Rf4 {[%clk 0:00:05]} 57. Rb5+ {[%clk 0:00:01]}  Kc6 {[%clk 0:00:05]} 58. Rxg5 {[%clk 0:00:02]}  Rf6 {[%clk 0:00:04]} 59. Rxg6 {[%clk 0:00:03]}  Rxg6+ {[%clk 0:00:03]} 60. Kf3 {[%clk 0:00:04]}  Rd6 {[%clk 0:00:04]} 61. Bg2 {[%clk 0:00:04]}  Rf6+ {[%clk 0:00:04]} 62. Kg4+ {[%clk 0:00:04]}  Kd6 {[%clk 0:00:03]} 63. Kg5 {[%clk 0:00:05]}  Rfe6 {[%clk 0:00:02]} 64. Bh3 {[%clk 0:00:05]}  Re5+ {[%clk 0:00:03]} 65. Kf4 {[%clk 0:00:05]}  Re8 {[%clk 0:00:03]} 66. Bg2 {[%clk 0:00:05]}  Rf8+ {[%clk 0:00:04]} 67. Kg4 {[%clk 0:00:04]}  Re7 {[%clk 0:00:05]} 68. Be4 {[%clk 0:00:03]}  Rg7+ {[%clk 0:00:05]} 69. Kh5 {[%clk 0:00:03]}  Rh8+ {[%clk 0:00:05]} 70. Bh7 {[%clk 0:00:03]}  Rhxh7# {[%clk 0:00:06]} 0-1


[Site "https://www.chess.com"]

[Event "Titled Tuesday Blitz June 07 Late 2022"]
[White "Alexiadis, Hristos"]
[Black "Adewumi, Tanitoluwa"]
[WhiteFideId "4249623"]
[BlackFideId "30966396"]
[WhiteElo "2416"]
[BlackElo "2538"]
[Result "0-1"]
[Round "07"]
[TimeControl "180+1"]
[Date "2022.06.07"]
[WhiteClock "0:00:06"]
[BlackClock "0:00:05"]

1. e4 {[%clk 0:03:00]}  c5 {[%clk 0:02:31]} 2. Nf3 {[%clk 0:03:00]}  e6 {[%clk 0:02:27]} 3. d3 {[%clk 0:02:58]}  d5 {[%clk 0:02:26]} 4. Qe2 {[%clk 0:02:57]}  Nf6 {[%clk 0:02:19]} 5. g3 {[%clk 0:02:58]}  Nc6 {[%clk 0:02:17]} 6. Bg2 {[%clk 0:02:58]}  Be7 {[%clk 0:02:17]} 7. O-O {[%clk 0:02:58]}  O-O {[%clk 0:02:10]} 8. e5 {[%clk 0:02:58]}  Nd7 {[%clk 0:02:09]} 9. c4 {[%clk 0:02:58]}  d4 {[%clk 0:02:00]} 10. h4 {[%clk 0:02:56]}  Qc7 {[%clk 0:01:50]} 11. Bf4 {[%clk 0:02:55]}  b6 {[%clk 0:01:46]} 12. Nbd2 {[%clk 0:02:56]}  Bb7 {[%clk 0:01:45]} 13. Rfe1 {[%clk 0:02:55]}  Rfb8 {[%clk 0:01:40]} 14. a3 {[%clk 0:02:32]}  a5 {[%clk 0:01:39]} 15. Rab1 {[%clk 0:02:31]}  a4 {[%clk 0:01:38]} 16. Nh2 {[%clk 0:02:27]}  Na5 {[%clk 0:01:23]} 17. Bxb7 {[%clk 0:02:28]}  Qxb7 {[%clk 0:01:23]} 18. Ng4 {[%clk 0:02:26]}  h5 {[%clk 0:01:18]} 19. Nh2 {[%clk 0:02:23]}  g6 {[%clk 0:01:17]} 20. Ne4 {[%clk 0:02:23]}  b5 {[%clk 0:01:15]} 21. cxb5 {[%clk 0:02:22]}  Qxb5 {[%clk 0:01:11]} 22. g4 {[%clk 0:02:18]}  hxg4 {[%clk 0:01:10]} 23. Qxg4 {[%clk 0:02:19]}  Kf8 {[%clk 0:01:00]} 24. Bh6+ {[%clk 0:02:08]}  Ke8 {[%clk 0:00:55]} 25. Nd6+ {[%clk 0:02:08]}  Bxd6 {[%clk 0:00:54]} 26. exd6 {[%clk 0:02:09]}  Qxd3 {[%clk 0:00:48]} 27. Rxe6+ {[%clk 0:01:48]}  fxe6 {[%clk 0:00:29]} 28. Qxe6+ {[%clk 0:01:49]}  Kd8 {[%clk 0:00:29]} 29. Bg5+ {[%clk 0:01:48]}  Kc8 {[%clk 0:00:29]} 30. Qe8+ {[%clk 0:01:48]}  Kb7 {[%clk 0:00:30]} 31. Qxd7+ {[%clk 0:01:49]}  Ka6 {[%clk 0:00:30]} 32. Rc1 {[%clk 0:01:46]}  Nb3 {[%clk 0:00:24]} 33. Qc6+ {[%clk 0:01:35]}  Ka5 {[%clk 0:00:24]} 34. Re1 {[%clk 0:01:01]}  Qb5 {[%clk 0:00:23]} 35. Qc7+ {[%clk 0:01:00]}  Qb6 {[%clk 0:00:23]} 36. Qf7 {[%clk 0:01:00]}  Qc6 {[%clk 0:00:17]} 37. Nf1 {[%clk 0:00:58]}  Rf8 {[%clk 0:00:16]} 38. Qc4 {[%clk 0:00:48]}  Qf3 {[%clk 0:00:12]} 39. Re2 {[%clk 0:00:37]}  d3 {[%clk 0:00:09]} 40. Rd2 {[%clk 0:00:30]}  Kb6 {[%clk 0:00:04]} 41. Nh2 {[%clk 0:00:25]}  Nxd2 {[%clk 0:00:03]} 42. Bd8+ {[%clk 0:00:06]}  Raxd8 {[%clk 0:00:01]} 43. Qc3 {[%clk 0:00:07]}  Qxf2+ {[%clk 0:00:01]} 44. Kh1 {[%clk 0:00:07]}  Qe1+ {[%clk 0:00:02]} 45. Kg2 {[%clk 0:00:07]}  Qe2+ {[%clk 0:00:03]} 46. Kh3 {[%clk 0:00:08]}  Ne4 {[%clk 0:00:03]} 47. Qg7 {[%clk 0:00:07]}  Qe3+ {[%clk 0:00:04]} 48. Kg4 {[%clk 0:00:06]}  Qf4+ {[%clk 0:00:04]} 49. Kh3 {[%clk 0:00:06]}  Qg3# {[%clk 0:00:05]} 0-1


[Site "https://www.chess.com"]

[Event "Titled Tuesday Blitz June 07 Late 2022"]
[White "Araujo Sanchez, Josue"]
[Black "Pinheiro, Iung Alicio de O."]
[WhiteFideId "6416896"]
[BlackFideId "2104350"]
[WhiteElo "2339"]
[BlackElo "2283"]
[Result "1-0"]
[Round "07"]
[TimeControl "180+1"]
[Date "2022.06.07"]
[WhiteClock "0:01:58"]
[BlackClock "0:00:16"]

1. c4 {[%clk 0:03:00]}  c5 {[%clk 0:02:59]} 2. Nc3 {[%clk 0:03:00]}  g6 {[%clk 0:02:58]} 3. g3 {[%clk 0:03:01]}  Bg7 {[%clk 0:02:55]} 4. Bg2 {[%clk 0:03:02]}  Nc6 {[%clk 0:02:51]} 5. e3 {[%clk 0:03:00]}  h5 {[%clk 0:02:49]} 6. h3 {[%clk 0:02:59]}  d6 {[%clk 0:02:43]} 7. Nge2 {[%clk 0:02:59]}  h4 {[%clk 0:02:43]} 8. g4 {[%clk 0:02:57]}  f5 {[%clk 0:02:43]} 9. g5 {[%clk 0:02:57]}  e5 {[%clk 0:02:32]} 10. f4 {[%clk 0:02:56]}  Nge7 {[%clk 0:02:03]} 11. O-O {[%clk 0:02:54]}  Rb8 {[%clk 0:01:54]} 12. d3 {[%clk 0:02:53]}  Be6 {[%clk 0:01:54]} 13. Nd5 {[%clk 0:02:51]}  Bf7 {[%clk 0:01:26]} 14. Rb1 {[%clk 0:02:47]}  Nxd5 {[%clk 0:01:24]} 15. cxd5 {[%clk 0:02:47]}  Ne7 {[%clk 0:01:23]} 16. e4 {[%clk 0:02:47]}  O-O {[%clk 0:01:18]} 17. Be3 {[%clk 0:02:46]}  b6 {[%clk 0:01:17]} 18. Qe1 {[%clk 0:02:45]}  c4 {[%clk 0:00:53]} 19. dxc4 {[%clk 0:02:36]}  b5 {[%clk 0:00:47]} 20. cxb5 {[%clk 0:02:35]}  fxe4 {[%clk 0:00:46]} 21. Nc3 {[%clk 0:02:32]}  Nxd5 {[%clk 0:00:44]} 22. Nxd5 {[%clk 0:02:27]}  Bxd5 {[%clk 0:00:45]} 23. Qxh4 {[%clk 0:02:25]}  exf4 {[%clk 0:00:43]} 24. Rxf4 {[%clk 0:02:25]}  Rxb5 {[%clk 0:00:42]} 25. Rxf8+ {[%clk 0:02:22]}  Qxf8 {[%clk 0:00:43]} 26. Rd1 {[%clk 0:02:21]}  Qf5 {[%clk 0:00:34]} 27. b3 {[%clk 0:02:18]}  Bb7 {[%clk 0:00:32]} 28. Rxd6 {[%clk 0:02:15]}  Rd5 {[%clk 0:00:32]} 29. Rxd5 {[%clk 0:02:14]}  Qxd5 {[%clk 0:00:33]} 30. Qf4 {[%clk 0:02:08]}  Be5 {[%clk 0:00:28]} 31. Qf2 {[%clk 0:02:07]}  a5 {[%clk 0:00:28]} 32. Qd2 {[%clk 0:02:06]}  Kf7 {[%clk 0:00:19]} 33. h4 {[%clk 0:02:01]}  a4 {[%clk 0:00:18]} 34. bxa4 {[%clk 0:02:00]}  Qxd2 {[%clk 0:00:16]} 35. Bxd2 {[%clk 0:02:01]}  e3 {[%clk 0:00:16]} 36. Bxe3 {[%clk 0:01:58]} 1-0


[Site "https://www.chess.com"]

[Event "Titled Tuesday Blitz June 07 Late 2022"]
[White "Bernadskiy, Vitaliy"]
[Black "Zhurbinsky, David"]
[WhiteFideId "14100371"]
[BlackFideId "2072904"]
[WhiteElo "2473"]
[BlackElo "2558"]
[Result "0-1"]
[Round "07"]
[TimeControl "180+1"]
[Date "2022.06.07"]
[WhiteClock "0:01:47"]
[BlackClock "0:01:34"]

1. b3 {[%clk 0:02:55]}  e5 {[%clk 0:02:59]} 2. Bb2 {[%clk 0:02:55]}  Nc6 {[%clk 0:03:00]} 3. Nf3 {[%clk 0:02:55]}  e4 {[%clk 0:03:00]} 4. Nd4 {[%clk 0:02:55]}  Nxd4 {[%clk 0:03:01]} 5. Bxd4 {[%clk 0:02:55]}  c5 {[%clk 0:03:01]} 6. Bb2 {[%clk 0:02:55]}  d5 {[%clk 0:03:02]} 7. e3 {[%clk 0:02:54]}  Nf6 {[%clk 0:03:02]} 8. Bb5+ {[%clk 0:02:45]}  Bd7 {[%clk 0:03:01]} 9. Bxf6 {[%clk 0:02:42]}  gxf6 {[%clk 0:02:57]} 10. Bxd7+ {[%clk 0:02:41]}  Qxd7 {[%clk 0:02:58]} 11. O-O {[%clk 0:02:40]}  Rg8 {[%clk 0:02:56]} 12. Nc3 {[%clk 0:02:35]}  O-O-O {[%clk 0:02:54]} 13. Qh5 {[%clk 0:02:31]}  Rg5 {[%clk 0:02:34]} 14. Qe2 {[%clk 0:02:25]}  Bd6 {[%clk 0:02:18]} 15. g3 {[%clk 0:02:15]}  h5 {[%clk 0:02:11]} 16. Kg2 {[%clk 0:01:49]}  h4 {[%clk 0:02:04]} 17. Rh1 {[%clk 0:01:46]}  Rdg8 {[%clk 0:01:55]} 18. Rag1 {[%clk 0:01:46]}  hxg3 {[%clk 0:01:36]} 19. Kf1 {[%clk 0:01:47]}  g2+ {[%clk 0:01:34]} 0-1


[Site "https://www.chess.com"]